Cogmind - Beta 16.1 @@@ ROGUE MODE // 2026.02.12 @ 07:50:38 Player: deepledi Result: Destroyed by D-53 Grenadier with Mini Grenade Launcher Performance ------------- Evolutions (0) 0 Regions Visited (2) 400 Robots Destroyed (26) 130 Value Destroyed (356) 356 Prototype IDs (0) 0 Alien Tech Used (0) 0 Bonus (0) 0 TOTAL SCORE: 886 Bonus ------- None Cogmind --------- Core Integrity 0/250 Matter 300/300 Energy 249/250 System Corruption 0% Temperature Cool (0) Movement Walking (190) Ox1 Location -10/Mines Parts ------- > --- POWER (1) -------- Ion Engine > --- PROPULSION (2) --- Aluminum Leg > --- UTILITY (2) ------ Heat Sink Small Storage Unit > --- WEAPON (2) ------- Medium Laser > --- INVENTORY (8) ---- Light Ion Engine Compact Wheel Flight Unit Sensor Array Light Armor Plating Light Cannon Light Cannon Grenade Launcher Peak State ------------ > --- POWER ------------ Ion Engine > --- PROPULSION ------- Aluminum Leg Aluminum Leg > --- UTILITY ---------- Small Storage Unit Light Armor Plating > --- WEAPON ----------- Assault Rifle Light Cannon > --- INVENTORY -------- Ion Engine Light Treads Light Treads Wheel Compact Wheel Medium Laser Medium Laser [Rating: 7] Favorites ----------- Power Ion Engine Engine Ion Engine Propulsion Aluminum Leg Leg Aluminum Leg Utility Small Storage Unit Device Heat Sink Storage Small Storage Unit Protection Light Armor Plating Weapon Medium Laser Energy Gun Medium Laser Ballistic Gun Assault Rifle Ballistic Cannon Light Cannon Build | -11 -10 -10 ------- Run | Yrd Mat Min Slots Evolved . | . . . Power . | . . . Propulsion . | . . . Utility . | . . . Weapon . | . . . Parts Attached 17 | 5 12 . Power 2 | 1 1 . Engine 2 | 1 1 . Core . | . . . Reactor . | . . . Propulsion 5 | 2 3 . Treads . | . . . Leg 5 | 2 3 . Wheel . | . . . Hover . | . . . Flight . | . . . Utility 4 | 1 3 . Device 2 | . 2 . Storage 1 | 1 . . Processor . | . . . Hackware . | . . . Protection 1 | . 1 . Artifact . | . . . Weapon 6 | 1 5 . Energy Gun 3 | 1 2 . Energy Cannon . | . . . Ballistic Gun 1 | . 1 . Ballistic Cannon 2 | . 2 . Launcher . | . . . Special Weapon . | . . . Impact Weapon . | . . . Slashing Weapon . | . . . Piercing Weapon . | . . . Special Melee Weapon . | . . . Unidentified Prototypes . | . . . Parts Lost 3 | . 1 2 Power . | . . . Propulsion 2 | . 1 1 Utility . | . . . Weapon 1 | . . 1 Highest Loss Streak 2 | . 1 2 To Critical Strikes . | . . . Average Backups 7 | 4 7 8 Power . | . 1 1 Propulsion 2 | 1 2 2 Utility 1 | . 1 2 Weapon 2 | 2 2 3 Tool/Special . | . . . Unused Backups 8 | . 4 4 Power . | . . . Propulsion 5 | . 3 2 Utility 1 | . . 1 Weapon 2 | . 1 1 Tool/Special . | . . . Average Slot Usage (%) 97 | . 97 97 Engine 14 | . 14 14 Leg 27 | . 27 28 Device 9 | . 8 14 Storage 14 | . 14 14 Protection 3 | . 3 . Energy Gun 19 | . 18 26 Ballistic Gun 1 | . 1 . Ballistic Cannon 6 | . 7 . Peak Build Rating 7 | 5 7 7 Average Rating 6 | 3 6 6 On Entrance 4 | . 5 7 Avg Prop Armor Cover (%) . | . . . Naked Turns . | . . . Heaviest Build 19 | 12 19 15 Greatest Support 20 | 20 20 20 Greatest Overweight (x) 1 | . 1 . Average Overweight (x) . | . . . Largest Inventory Capacity 8 | 8 8 8 Average Capacity 7 | 6 8 8 Most Carried 8 | 8 8 8 Average Carried 7 | 4 7 8 Final Capacity 8 | 8 8 8 Final Carried 8 | 8 8 8 Class Distribution -------------------- 100% | Mutant Dominant Class ---------------- Mutant | -10/Materials Mutant | -10/Mines Resources | -11 -10 -10 ----------- Run | Yrd Mat Min Matter Collected 476 | 250 226 . Remotely . | . . . Salvage Created 519 | 14 505 . Parts 40 | 1 39 . Haulers Intercepted . | . . . Recyclers Shooed 3 | . 3 . Parts Field Recycled . | . . . Retrieved Matter . | . . . Parts Self-Destructed . | . . . Prevented . | . . . Parts Restored . | . . . Kills | -11 -10 -10 ------- Run | Yrd Mat Min Combat Hostiles Destroyed 21 | . 21 . Guns 14 | . 14 . Cannons 6 | . 6 . Classes Destroyed 6 | 1 5 . Builder 1 | . 1 . Tunneler 1 | 1 . . Recycler 1 | . 1 . Watcher 2 | . 2 . Swarmer 17 | . 17 . Grunt 4 | . 4 . Best Kill Streak 7 | 1 7 . Combat Bots Only 7 | . 7 . Max Kills in Single Turn 2 | 1 2 . Gunslinging . | . . . Exploded . | . . . Melee . | . . . Uniques/NPCs Destroyed . | . . . Combat | -11 -10 -10 -------- Run | Yrd Mat Min Hostile Shots Fired 128 | . 123 5 Missed 35 | . 34 1 Hits 93 | . 89 4 Projectile 93 | . 89 4 AOE 5 | . . 5 Critical Strikes 1 | . 1 . Damage Taken 1033 | . 790 243 Core 263 | . 193 70 Absorbed by Shields . | . . . Core Remaining (%) 100 | 100 . . Volleys Fired 69 | 9 59 1 Largest 2 | 1 2 1 Hottest 100 | 50 100 50 Shots Fired 128 | 9 118 1 Gun 102 | 9 92 1 Cannon 26 | . 26 . Launcher . | . . . Special . | . . . Kinetic 26 | . 26 . Thermal 102 | 9 92 1 Explosive . | . . . Electromagnetic . | . . . Robot Hit Streak 11 | 4 11 5 Robot Miss Streak 6 | 3 6 . Penetration Max . | . . . Secondary Targets 3 | . 3 . Max Gunslinging Chain 1 | . 1 . Shots Hit Robots 70 | 6 63 1 Core Hits 30 | 2 28 . Critical Kills . | . . . Critical Parts Destroyed . | . . . Critical Strikes 8 | 1 7 . Burn 7 | 1 6 . Blast 1 | . 1 . Melee Attacks . | . . . Impact . | . . . Slashing . | . . . Piercing . | . . . Sneak Attacks . | . . . Combat Hostiles . | . . . Follow-up Attacks . | . . . Damage Inflicted 1025 | 74 939 12 Guns 716 | 74 630 12 Cannons 303 | . 303 . Explosions . | . . . Melee . | . . . Ramming 6 | . 6 . Kinetic 303 | . 303 . Thermal 716 | 74 630 12 Explosive . | . . . Electromagnetic . | . . . Impact . | . . . Slashing . | . . . Piercing . | . . . Highest Corruption . | . . . Average Corruption . | . . . Corruption Purged . | . . . Corruption Blocked . | . . . Overload Shots . | . . . Overflow Damage 25 | . 25 . Projectiles 25 | . 25 . Explosions . | . . . Melee . | . . . Knockbacks 6 | . 6 . Impact . | . . . Kinetic 6 | . 6 . Secondary . | . . . Self-Inflicted Damage . | . . . Shots . | . . . Rammed . | . . . Targets Rammed 1 | . 1 . Kicked 1 | . 1 . Crushed . | . . . Highest Temperature 132 | 70 132 . Average Temperature 39 | 36 39 . Received Heat Transfer 156 | . 156 . Siege Activations . | . . . Martial Activations . | . . . Shielding Activations . | . . . Robots Disrupted . | . . . Combat Hostiles . | . . . Robots Corrupted . | . . . Combat Hostiles . | . . . Parts Fried . | . . . Impact Corruptions . | . . . Robots Melted 1 | . 1 . Combat Hostiles 1 | . 1 . Parts Melted 4 | . 4 . Heat Transferred 2627 | 296 2294 37 Parts Sabotaged . | . . . Parts Stolen . | . . . Parts Stripped . | . . . Power Chain Reactions . | . . . Alert | -11 -10 -10 ------- Run | Yrd Mat Min Maximum Alert Level 1 | . 1 . Low Security (%) 89 | 100 87 100 Level 1 10 | . 12 . Level 2 . | . . . Level 3 . | . . . Level 4 . | . . . Level 5 . | . . . High Security . | . . . Max Security . | . . . Peak Influence 338 | 5 338 125 Initial 125 | . . 125 Average 89 | . 97 114 Influence Increases 601 | 5 596 . Destroy 0b10 Robot/C 420 | . 420 . Destroy 0b10 Robot/NC 25 | 5 20 . Destroy Leader 74 | . 74 . Successful Hack 4 | . 4 . Destroy Structure 3 | . 3 . Lose Combat Pursuer 75 | . 75 . Influence Decreases 516 | 5 274 237 Entered New Map 197 | . . 197 Time Decay 289 | 5 264 20 Lost Part 30 | . 10 20 Squads Dispatched 1 | . 1 . Investigation . | . . . Extermination . | . . . Reinforcement 1 | . 1 . Assault . | . . . Garrison . | . . . Intercept . | . . . Searches Triggered . | . . . Construction Impeded . | . . . Haulers Reinforced . | . . . Active Scanning Responses . | . . . Cargo Convoy Interrupts . | . . . Stealth | -11 -10 -10 --------- Run | Yrd Mat Min Distress Signals 2 | . 2 . Communications Jammed . | . . . Distress Signals . | . . . Times Spotted 33 | . 30 3 Peak Tracking Total 9 | . 9 2 Tactical Retreats 3 | . 3 . Traps | -11 -10 -10 ------- Run | Yrd Mat Min Traps Triggered . | . . . Indirectly . | . . . Trap Hack Attempts . | . . . Triggered . | . . . Disarmed . | . . . Reprogrammed . | . . . Reused . | . . . Traps Extracted . | . . . Installed . | . . . Triggered . | . . . Machines | -11 -10 -10 ---------- Run | Yrd Mat Min Machines Disabled . | . . . Max in Single Turn . | . . . Machines Repaired . | . . . Machines Dismantled . | . . . Machines Sabotaged . | . . . Overloaded Fab Kills . | . . . Hacking | -11 -10 -10 --------- Run | Yrd Mat Min Machines Accessed 1 | . 1 . Terminals 1 | . 1 . Fabricators . | . . . Repair Stations . | . . . Recycling Units . | . . . Scanalyzers . | . . . Garrison Access . | . . . Total Hacks 2 | . 2 . Successful 2 | . 2 . Failed . | . . . Catastrophic . | . . . Database Lockouts . | . . . Manual 1 | . 1 . Terminals 2 | . 2 . Fabricators . | . . . Repair Stations . | . . . Recycling Units . | . . . Scanalyzers . | . . . Garrison Access . | . . . Terminal Hacks 1 | . 1 . Emergency Access Points 1 | . 1 . Fabricator Hacks . | . . . Repair Station Hacks . | . . . Recycling Unit Hacks . | . . . Scanalyzer . | . . . Garrison Access Hacks . | . . . Unauthorized Hacks 1 | . 1 . Terminals 1 | . 1 . Botnet 1 | . 1 . Fabricators . | . . . Repair Stations . | . . . Recycling Units . | . . . Scanalyzers . | . . . Garrison Access . | . . . Data Cores Recovered . | . . . Used . | . . . Hacking Detections 1 | . 1 . Full Trace Events . | . . . Feedback Events . | . . . Feedback Blocked . | . . . Robot Schematics Acquired . | . . . Robots Built . | . . . Authchips . | . . . Time . | . . . Total Robot Build Rating . | . . . Part Schematics Acquired . | . . . Parts Built . | . . . Authchips . | . . . Time . | . . . Total Part Build Rating . | . . . Part Studies Acquired . | . . . Parts Repaired . | . . . Time . | . . . Parts Recycled . | . . . Recycled Matter . | . . . Retrieved Matter . | . . . Retrieved Components . | . . . Parts Scanalyzed . | . . . Part Schematics Acquired . | . . . Parts Damaged . | . . . Bothacking | -11 -10 -10 ------------ Run | Yrd Mat Min Used RIF Installer . | . . . Robots Hacked . | . . . Non-combat . | . . . Combat . | . . . Robot Hacks Applied . | . . . Relay Couplers Released . | . . . Fabnet Peak Effective % . | . . . Robots Rewired . | . . . Allies Hacked . | . . . Hacks Repelled . | . . . Allies | -11 -10 -10 -------- Run | Yrd Mat Min Total Allies . | . . . Largest Group . | . . . Highest-Rated Group . | . . . Highest-Rated Ally . | . . . Total Orders . | . . . Ally Attacks . | . . . Total Damage . | . . . Kills . | . . . Allies Corrupted . | . . . Allies Melted . | . . . Intel | -11 -10 -10 ------- Run | Yrd Mat Min Active Infowar (turns) 2 | . 2 . Sensors 2 | . 2 . Robot Analysis Total . | . . . Derelict Logs Recovered . | . . . Drone Launches . | . . . Drone Recoveries . | . . . Exploration | -11 -10 -10 ------------- Run | Yrd Mat Min Turns Passed 841 | 86 700 55 Spaces Moved 460 | 50 365 45 Core 11 | 11 . . Treads . | . . . Legs 449 | 39 365 45 Wheels . | . . . Hover . | . . . Flight . | . . . Fastest Speed 50 | 50 120 120 Average Speed 118 | 104 120 120 Slowest Speed 190 | 120 190 120 Overloaded Moves . | . . . Propulsion Burnouts . | . . . Robots Hopped . | . . . Potential Cave-ins . | . . . Cave-ins Triggered . | . . . Exploration Rate (%) 29 | 4 67 17 Regions Visited 2 Branch Regions 1 Pre-discovered Areas . | . . . Known Exits Taken . | . . . Unknown Exits Taken 2 | 1 1 . Scrap Searched . | . . . Spaces Dug . | . . . Terrain Destroyed . | . . . Melee . | . . . Projectile . | . . . AOE . | . . . Terrain Rammed . | . . . Walls Destroyed . | . . . Machines Disabled . | . . . Actions | -11 -10 -10 --------- Run | Yrd Mat Min Total 627 | 72 509 46 Wait 50 | . 50 . Move 458 | 49 364 45 Hop . | . . . Pick Up 17 | 9 8 . Fast Attach 8 | 4 4 . Attach 3 | 1 2 . Detach 2 | . 2 . Swap 7 | . 7 . Drop 12 | . 12 . Fire 69 | 9 59 1 Melee . | . . . Ram . | . . . Kick 1 | . 1 . Crush . | . . . Escape Stasis . | . . . Rewire . | . . . Trap . | . . . Miscellaneous . | . . . Route ------- -11/Scrapyard -10/Materials (discovered 3 exits: [*Mat] / [*Min x2]) -10/Mines History --------- Turn | Location | Event 10 | -11/Scrapyard | Discovered new exit (range 15) 87 | -11/Scrapyard | Entered Materials 297 | -10/Materials | Discovered new exit (range 15) 310 | -10/Materials | Build established: Mutant 433 | -10/Materials | Discovered new exit (range 12) 587 | -10/Materials | Derelicts attacked the area 666 | -10/Materials | Core integrity fell below 50% 728 | -10/Materials | Destroyed 7 combat bots 772 | -10/Materials | Discovered new exit (range 9) 787 | -10/Materials | Entered Mines 788 | -10/Mines | Met a Derelict bent on vengeance 815 | -10/Mines | Assembled infested the area 840 | -10/Mines | Core integrity fell below 20% 842 | -10/Mines | Destroyed by D-53 Grenadier with Mini Grenade Launcher Last Messages --------------- 00755_ R-06 Scavenger collects Flight Unit. 00758_ K-01 Serf collects debris. 00758_ R-06 Scavenger collects Flight Unit. 00758_ Dropped Aluminum Leg. 00761_ Dropped Ion Engine. 00762_ K-01 Serf collects debris. 00764_ Acquired Lgt. Ion Engine. 00766_ Acquired 20 matter. 00767_ K-01 Serf collects debris. 00772_ EXIT=FOUND LOCATION=UNKNOWN GOAL=ESCAPE Something is scanning the area. 00815_ ALERT: Infestation in the mines, dispatching Demolisher response squad. 00839_ C-45 Heavy ARC bursts open, deploying its payload. 00839_ D-53 Grenadier unfolds itself. 00839_ Med. Laser destroyed. 00840_ Aluminum Leg destroyed. Map ----- +----------------------------------------------------+ | ?????????????????????????????????????????????????? | | ?????????????????????????????????????????????????? | | ?????????????????????????????????????????????????? | | ?????????????????????????????????????????????????? | | ?????????????????????????????????????????????????? | | ?????????????????????????????????????????????????? | | ?????????????????????????????????????????????????? | | ?????????????????????????????????????????????????? | | ?????????????????????????????????????????????????? | | ?????????????????????????????????????????????????? | | ?????????????????????????????????????????????????? | | ?????????????????????????????????????????????????? | | ?????????????????????????????????????????????????? | | ?????????????????????????????????????????????????? | | ?????????????????????????###?????????????????????? | | ????????????????????????? #?????????????????????? | | ?????????????????????????# #?????????????????????? | | ?????????????????????????# #?????????????????????? | | ?????????????????????????# #?????????????????????? | | ??????????????????????##?# #?????????????????????? | | ?????????????????????## ## ###???????????????????? | | ??????????????# # ??## ######## #??????????? | | ?????????????## # #??????????? | | ?????????????# dd #### #### ???? | | ????????????# #?# #???????????????? | | ????????????# """ # @ #?# #???????????????? | | ????????????# """ ?## ## #???????????????? | | ?????????????? """ ? ## #???????????????? | | ?????????????? ?## ### #???????????????? | | ????????????? ##??## ######?# #???????????????? | | ????????????? #?????##??###??# #???????????????? | | ???????????? ?????????## ### ##??????????????? | | ???????????? ??????????# ##?????????????? | | ???????????? ???????????## ##????????????? | | ??????????? ?????????????## ##???????????? | | ????????????#??????????????## ######??????? | | ????????????????????????????# ###????? | | ????????????????????????????## ##???? | | ?????????????????????????????#### """ ### | | ????????????????????????????????## """ | | ?????????????????????????????????## """ | | ??????????????????????????????????#### | | ?????????????????????????????????????# # | | ??????????????????????????????##?????# ### ## | | ?????????????????????????????## #????# #???#####? | | ?????????????????????????????# ###?# #????????? | | ?????????????????????????????# ### #????????? | | ??????????????????????????????# ## #????????? | | ??????????????????????????????# #????????? | | ??????????????????????????????# #####????????? | +----------------------------------------------------+ Best States ------------- Heat Dissipation 35 Energy Generation 10 Energy Capacity 250 Matter Stores 300 Matter Capacity 300 Sight Range 16 Robot Scan Range 14 Terrain Scan Density 10 Armor Coverage 150 Evasion (%) 55 Item Schematics ----------------- None Robot Schematics ------------------ None Fabricated ------------ Nothing Repaired ---------- Nothing Studied --------- None Alien Tech Used ----------------- None Achievements -------------- None Challenges ------------ None Game ------ Seed FortressShiftObliterator Manual? 0 Play Time 00:09:45 Cumulative 77.4 hours Start 2026.02.12 @ 07:41:11 End 2026.02.12 @ 07:50:38 Sessions 1 Manual Loads 0 Difficulty Rogue Special Mode None Game No. 95 Rogue 94 Adventurer 1 Explorer 0 Win Type - Total 0 Types 0/0/0/0/0/0/0/0/0/0 Lore% 22 Gallery% 40 Achievement% 26 Wizard Run 0 Options --------- Layout 1 ASCII 0 Keyboard 0 Movement Numpad Keybinds 0 Fullscreen 2 Font 24/Smallcaps Map View 50x35 Zoom Use 0% Tactical HUD 1 Map Filters NONE Filters NONE Steam 1 RUN: 0826d474-c7d2-4304-868d-792ed1d5b72b